bitfinex-derivatives/quotes_BNBF0:USTF0_20250609
["timestamp","ask_amount","ask_price","bid_price","bid_amount"]
[1749492880330,1.10981233,659.41,658.66,0.30364679]
[1749492880531,1.10981233,659.4,658.66,0.30364679]
[1749492880731,1.10981233,659.41,658.66,0.30364679]
[1749492880933,1.10981233,659.4,658.66,0.30364679]
[1749492881135,1.10981233,659.41,658.66,0.30364679]
[1749492881333,1.10981233,659.4,658.66,0.30364679]
[1749492881534,1.10981233,659.41,658.66,0.30364679]
[1749492882637,1.10981233,659.4,658.66,0.30364679]
[1749492882837,1.10981233,659.39,658.66,0.30364679]
[1749492883037,1.10981233,659.38,658.66,0.30364679]
[1749492883237,1.10981233,659.37,658.66,0.30364679]
[1749492883437,1.10981233,659.36,658.66,0.30364679]
[1749492883638,1.10981233,659.35,658.66,0.30364679]
[1749492883938,1.10981233,659.41,658.66,0.30364679]
[1749492884236,1.10981233,659.4,658.66,0.30364679]
[1749492884434,1.10981233,659.39,658.66,0.30364679]
[1749492884635,1.10981233,659.38,658.66,0.30364679]
[1749492884836,1.10981233,659.37,658.66,0.30364679]
[1749492885035,1.10981233,659.36,658.66,0.30364679]
[1749492885238,1.10981233,659.35,658.66,0.30364679]
[1749492885534,1.10981233,659.34,658.66,0.30364679]
[1749492885739,1.10981233,659.33,658.66,0.30364679]
[1749492886034,1.10981233,659.41,658.66,0.30364679]
[1749492886239,1.10981233,659.4,658.66,0.30364679]
[1749492886438,1.10981233,659.39,658.66,0.30364679]
[1749492886635,1.10981233,659.38,658.66,0.30364679]
[1749492886841,1.10981233,659.37,658.66,0.30364679]
[1749492887035,1.10981233,659.36,658.66,0.30364679]
[1749492887240,1.10981233,659.35,658.66,0.30364679]
[1749492887435,1.10981233,659.34,658.66,0.30364679]
[1749492887639,1.10981233,659.41,658.66,0.30364679]
[1749492887836,1.10981233,659.4,658.66,0.30364679]
[1749492888035,1.10981233,659.39,658.66,0.30364679]
[1749492888240,1.10981233,659.38,658.66,0.30364679]
[1749492888541,1.10981233,659.37,658.66,0.30364679]
[1749492888741,1.10981233,659.36,658.66,0.30364679]
[1749492888952,1.10981233,659.35,658.66,0.30364679]
[1749492889141,1.10981233,659.41,658.66,0.30364679]
[1749492889342,1.10981233,659.4,658.66,0.30364679]
[1749492889541,1.10981233,659.39,658.66,0.30364679]
[1749492889743,1.10981233,659.38,658.66,0.30364679]
[1749492890038,1.10981233,659.37,658.66,0.30364679]
[1749492890242,1.10981233,659.36,658.66,0.30364679]
[1749492890442,1.10981233,659.41,658.66,0.30364679]
[1749492890642,1.10981233,659.4,658.66,0.30364679]
[1749492890842,1.10981233,659.39,658.66,0.30364679]
[1749492891142,1.10981233,659.38,658.66,0.30364679]
[1749492891338,1.10981233,659.37,658.66,0.30364679]
[1749492891542,1.10981233,659.36,658.66,0.30364679]
[1749492891739,1.10981233,659.41,658.66,0.30364679]
[1749492891940,1.10981233,659.4,658.66,0.30364679]
[1749492892141,1.10981233,659.39,658.66,0.30364679]
[1749492892341,1.10981233,659.38,658.66,0.30364679]
[1749492892541,1.10981233,659.37,658.66,0.30364679]
[1749492892741,1.10981233,659.36,658.66,0.30364679]
[1749492893040,1.10981233,659.35,658.66,0.30364679]
[1749492893241,1.10981233,659.34,658.66,0.30364679]
[1749492893441,1.10981233,659.33,658.66,0.30364679]
[1749492893639,1.463,659.42,658.66,0.30364679]
[1749492893640,1.10981233,659.32,658.66,0.30364679]
[1749492893844,1.10981233,659.41,658.66,0.30364679]
[1749492894045,1.10981233,659.4,658.66,0.30364679]
[1749492894246,1.10981233,659.39,658.66,0.30364679]
[1749492894443,1.10981233,659.38,658.66,0.30364679]
[1749492894648,1.10981233,659.37,658.66,0.30364679]
[1749492894843,1.463,659.42,658.66,0.30364679]
[1749492894844,1.10981233,659.36,658.66,0.30364679]
[1749492895143,1.10981233,659.35,658.66,0.30364679]
[1749492895347,1.463,659.42,658.66,0.30364679]
[1749492895348,1.10981233,659.34,658.66,0.30364679]
[1749492895547,1.10981233,659.33,658.66,0.30364679]
[1749492895747,1.10981233,659.32,658.66,0.30364679]
[1749492895947,1.10981233,659.41,658.66,0.30364679]
[1749492896149,1.10981233,659.4,658.66,0.30364679]
[1749492896444,1.10981233,659.39,658.66,0.30364679]
[1749492896648,1.10981233,659.38,658.66,0.30364679]
[1749492896847,1.10981233,659.37,658.66,0.30364679]
[1749492897045,1.10981233,659.36,658.66,0.30364679]
[1749492897248,1.10981233,659.35,658.66,0.30364679]
[1749492897445,1.463,659.42,658.66,0.30364679]
[1749492897446,1.10981233,659.34,658.66,0.30364679]
[1749492897648,1.10981233,659.33,658.66,0.30364679]
[1749492897848,1.10981233,659.41,658.66,0.30364679]
[1749492898053,1.10981233,659.4,658.66,0.30364679]
[1749492898251,1.10981233,659.39,658.66,0.30364679]
[1749492898546,1.10981233,659.38,658.66,0.30364679]
[1749492898749,1.10981233,659.37,658.66,0.30364679]
[1749492898950,1.10981233,659.36,658.66,0.30364679]
[1749492899148,1.10981233,659.35,658.66,0.30364679]
[1749492899353,1.10981233,659.34,658.66,0.30364679]
[1749492899652,1.10981233,659.33,658.66,0.30364679]
[1749492899954,1.10981233,659.41,658.66,0.30364679]
[1749492900249,1.10981233,659.4,658.66,0.30364679]
[1749492900452,1.10981233,659.39,658.66,0.30364679]
[1749492900752,1.10981233,659.38,658.66,0.30364679]
[1749492900950,1.10981233,659.37,658.66,0.30364679]
[1749492901153,1.10981233,659.36,658.66,0.30364679]
[1749492901352,1.10981233,659.35,658.66,0.30364679]
[1749492901652,1.10981233,659.34,658.66,0.30364679]
[1749492901852,1.10981233,659.33,658.66,0.30364679]
[1749492902053,1.10981233,659.41,658.66,0.30364679]
[1749492902254,1.10981233,659.4,658.66,0.30364679]
[1749492902549,0.26410956,659.32,658.66,0.30364679]
[1749492914164,1.064,659.31,658.66,0.30364679]
[1749492922468,1.064,659.31,658.45,0.26406146]
[1749492929469,2.17227382,659.31,658.45,0.26406146]
[1749492929770,1.10827382,659.3,658.45,0.26406146]
[1749492930366,1.064,659.31,658.45,0.26406146]
[1749492938569,0.906,659.3,658.45,0.26406146]
[1749492939074,2.01427382,659.3,658.45,0.26406146]
[1749492939372,0.906,659.3,658.45,0.26406146]
[1749492939976,0.906,659.3,658.45,0.5678051]
[1749492940170,0.906,659.3,658.46,0.30373902]
[1749492960581,1.227,659.29,658.54,3.76655524]
[1749492960883,1.227,659.29,658.55,0.30369751]
[1749492963786,1.2,659.28,658.55,0.30369751]
[1749492978196,1.141,659.27,658.55,0.30369751]
[1749492990205,1.2,659.28,658.55,0.30369751]
[1749492993609,1.323,659.27,658.55,0.30369751]
[1749492994911,1.323,659.27,658.56,3.76655524]
[1749492995911,1.323,659.27,658.57,3.76655524]
[1749492996712,1.323,659.27,658.6,3.76655524]
[1749492998214,1.323,659.27,658.61,3.76655524]
[1749492998713,1.323,659.27,658.62,3.76655524]
[1749492998914,1.323,659.27,658.55,0.30369751]
[1749493002619,0.915,659.26,658.55,0.30369751]
[1749493013423,1.284,659.25,658.55,0.30369751]
[1749493019829,1.284,659.25,658.55,4.07025275]
[1749493021930,1.284,659.25,658.55,0.30369751]
[1749493027537,0.915,659.26,658.55,0.30369751]
[1749493030640,0.891,659.25,658.55,0.30369751]
[1749493036553,0.891,659.25,658.59,3.76655524]
[1749493036748,0.891,659.25,658.6,0.30367446]
[1749493040956,0.891,659.25,658.63,3.76655524]
[1749493041255,0.891,659.25,658.64,0.30365601]
[1749493047560,0.915,659.26,658.64,0.30365601]
[1749493050064,0.806,659.25,658.64,0.30365601]
[1749493060372,0.911,659.24,658.64,0.30365601]
[1749493063079,0.911,659.24,658.66,3.76655524]
[1749493063474,0.911,659.24,658.69,3.76655524]
[1749493065180,0.911,659.24,658.74,3.76655524]
[1749493065776,0.911,659.24,658.77,3.76655524]
[1749493066883,1.205,659.23,658.77,3.76655524]
[1749493067479,1.205,659.23,658.75,3.76655524]
[1749493068886,1.205,659.23,658.77,3.76655524]
[1749493069387,1.205,659.23,658.73,3.76655524]
[1749493069881,1.205,659.23,658.64,0.30365601]
[1749493069882,1.205,659.23,658.71,3.76655524]
[1749493071685,1.205,659.23,658.72,3.76655524]
[1749493073083,1.205,659.23,658.64,0.30365601]
[1749493079694,1.205,659.23,658.65,3.76655524]
[1749493080294,1.205,659.23,658.64,4.07021125]
[1749493081291,1.205,659.23,658.65,3.76655524]
[1749493081496,1.205,659.23,658.64,0.30365601]
[1749493082991,1.205,659.23,658.64,4.07021125]
[1749493086595,1.205,659.23,658.65,3.76655524]
[1749493086897,0.911,659.24,658.65,3.76655524]
[1749493087595,0.911,659.24,658.64,4.07021125]
[1749493089499,0.911,659.24,658.64,0.30365601]
[1749493089695,1.137,659.23,658.64,0.30365601]
[1749493091600,1.137,659.23,658.75,3.76655524]
[1749493092898,1.137,659.23,658.8,3.76655524]
[1749493093501,1.137,659.23,658.79,3.76655524]
[1749493094402,1.137,659.23,658.78,3.76655524]
[1749493094897,0.99,659.22,658.78,3.76655524]
[1749493095697,0.99,659.22,658.79,3.76655524]
[1749493096502,0.99,659.22,658.81,3.76655524]
[1749493097500,0.99,659.22,658.82,3.76655524]
[1749493097902,0.99,659.22,658.81,3.76655524]
[1749493099107,0.45937749,659.23,658.81,3.76655524]
[1749493099301,0.45937749,659.23,658.88,3.76655524]
[1749493099805,0.45937749,659.23,658.85,3.76655524]
[1749493100203,0.45937749,659.23,658.86,3.76655524]
[1749493101509,0.45937749,659.23,658.73,3.76655524]
[1749493103209,0.45937749,659.23,658.67,3.76655524]
[1749493104706,0.45937749,659.23,658.68,3.76655524]
[1749493105106,0.45937749,659.23,658.69,3.76655524]
[1749493106011,0.45937749,659.23,658.68,3.76655524]
[1749493107310,0.45937749,659.23,658.67,3.76655524]
[1749493107908,0.45937749,659.23,658.68,3.76655524]
[1749493108313,0.45937749,659.23,658.65,3.76655524]
[1749493109513,0.45937749,659.23,658.64,0.30365601]
[1749493111514,0.45937749,659.23,658.65,3.76655524]
[1749493111814,0.26399836,659.54,658.65,3.76655524]
[1749493113311,0.26399836,659.54,658.64,0.30365601]
[1749493113312,0.26399836,659.54,658.68,3.76655524]
[1749493114612,0.26399836,659.54,658.64,0.30365601]
[1749493116514,1.23,659.53,658.64,0.30365601]
[1749493119319,1.23,659.53,658.67,3.76655524]
[1749493119822,1.23,659.53,658.66,3.76655524]
[1749493120421,1.23,659.53,658.67,3.76655524]
[1749493122925,1.23,659.53,658.64,0.30365601]
[1749493124320,1.23,659.53,658.79,3.76655524]
[1749493126623,1.23,659.53,658.7,3.76655524]
[1749493128028,1.23,659.53,658.66,3.76655524]
[1749493129327,1.23,659.53,658.64,4.07021125]
[1749493129730,1.23,659.53,658.65,3.76655524]
[1749493132030,1.23,659.53,658.66,3.76655524]
[1749493133333,1.23,659.53,658.68,3.76655524]
[1749493134628,1.23,659.53,658.69,3.76655524]
[1749493135633,1.23,659.53,658.68,3.76655524]
[1749493136830,1.23,659.53,658.75,3.76655524]
[1749493137430,1.23,659.53,658.73,3.76655524]
[1749493137830,1.23,659.53,658.74,3.76655524]
[1749493138235,1.23,659.53,658.78,3.76655524]
[1749493139130,1.23,659.53,658.82,3.76655524]
[1749493141934,1.23,659.53,658.77,3.76655524]
[1749493142632,0.26399836,659.54,658.77,3.76655524]
[1749493142832,0.26399836,659.54,658.75,3.76655524]
[1749493143232,0.26399836,659.54,658.7,3.76655524]
[1749493146030,0.852,659.53,658.7,3.76655524]
[1749493146932,0.852,659.53,658.71,3.76655524]
[1749493147432,0.852,659.53,658.64,0.30365601]
[1749493157344,0.852,659.53,658.72,3.76655524]
[1749493158548,1.2,659.52,658.72,3.76655524]
[1749493161846,1.2,659.52,658.64,0.30365601]
[1749493161847,1.2,659.52,658.7,3.76655524]
[1749493162452,1.2,659.52,658.69,3.76655524]
[1749493163747,1.129,659.51,658.69,3.76655524]
[1749493164147,1.129,659.51,658.68,3.76655524]
[1749493165256,1.129,659.51,658.64,0.30365601]
[1749493169652,1.246,659.5,658.64,0.30365601]
[1749493174961,1.246,659.5,658.79,3.76655524]
[1749493175461,1.246,659.5,658.77,3.76655524]
[1749493177457,1.246,659.5,658.76,3.76655524]
[1749493178662,1.246,659.5,658.77,3.76655524]
[1749493179565,1.246,659.5,658.76,3.76655524]
[1749493180063,1.246,659.5,658.77,3.76655524]
[1749493180461,1.246,659.5,658.76,3.76655524]
[1749493180965,1.246,659.5,658.74,3.76655524]
[1749493181162,1.12664741,659.49,658.74,3.76655524]
[1749493181366,1.12664741,659.49,658.64,0.30365601]
[1749493181866,1.246,659.5,658.64,0.30365601]
[1749493183669,2.37171283,659.5,658.64,0.30365601]
[1749493185272,1.246,659.5,658.64,0.30365601]
[1749493185567,2.3711608,659.5,658.64,0.30365601]
[1749493187173,1.1251608,659.49,658.64,0.30365601]
[1749493187673,1.246,659.5,658.64,0.30365601]
[1749493190975,0.787,659.49,658.64,0.30365601]
[1749493197785,0.879,659.48,658.64,0.30365601]
[1749493206191,2.00210302,659.48,658.64,0.30365601]
[1749493206395,1.12310302,659.47,658.64,0.30365601]
[1749493207392,0.879,659.48,658.64,0.30365601]
[1749493208094,1.12276514,659.47,658.64,0.30365601]
[1749493208295,2.18276514,659.47,658.64,0.30365601]
[1749493209597,1.06,659.47,658.64,0.30365601]
[1749493211297,0.765,659.46,658.64,0.30365601]
[1749493217105,1.88770166,659.46,658.64,0.30365601]
[1749493221303,1.079,659.45,658.64,0.30365601]
[1749493221504,2.20170166,659.45,658.64,0.30365601]
[1749493223007,1.245,659.44,658.64,0.30365601]
[1749493223207,2.36770166,659.44,657.75,3.77510027]
[1749493223411,1.12270166,659.43,658.44,0.26405445]
[1749493223611,1.12270166,659.43,657.71,3.77510027]
[1749493223907,1.12270166,659.43,658.4,0.26414564]
[1749493224111,2.19849183,659.43,658.4,0.26414564]
[1749493224308,2.73214741,659.42,657.77,0.30405764]
[1749493224511,2.1985177,659.41,658.39,0.26414464]
[1749493224711,2.19860318,659.4,657.77,0.30405764]
[1749493224907,1.12270166,659.39,657.77,0.30405764]
[1749493225107,1.12270166,659.38,658.39,0.26414665]
[1749493225311,2.19859954,659.4,657.77,0.30405764]
[1749493225608,1.12270166,659.39,658.39,0.26414865]
[1749493225808,1.12270166,659.38,658.39,0.26414865]
[1749493226011,1.12270166,659.39,657.77,0.30405764]
[1749493226209,1.12270166,659.38,658.39,0.26414765]
[1749493226512,1.12270166,659.39,657.77,0.30405764]
[1749493226713,1.12270166,659.38,658.39,0.26414865]
[1749493226913,1.12270166,659.37,658.39,0.26414865]
[1749493227113,1.091,659.41,657.77,0.30405764]
[1749493227114,1.12270166,659.38,657.77,0.30405764]
[1749493227313,1.12270166,659.37,658.39,0.26414865]
[1749493227515,1.12270166,659.39,657.77,0.30405764]
[1749493227712,1.12270166,659.38,657.77,0.30405764]
[1749493227916,1.07524425,659.4,657.77,0.30405764]
[1749493227917,1.12270166,659.37,658.39,0.26414965]
[1749493228118,1.12270166,659.39,657.77,0.30405764]
[1749493228312,1.12270166,659.38,658.39,0.26414965]
[1749493228512,2.19782973,659.39,658.39,0.26414965]
[1749493228714,1.12270166,659.38,657.77,0.30405764]
[1749493228916,1.12270166,659.37,658.39,0.26414865]
[1749493229117,1.12270166,659.4,657.77,0.30405764]
[1749493229414,1.12270166,659.39,658.39,0.26414965]
[1749493229613,1.12270166,659.38,658.39,0.26414965]
[1749493229812,1.12270166,659.37,657.77,0.30405764]
[1749493230017,2.19810708,659.4,658.39,0.26414765]
[1749493230214,1.12270166,659.39,657.77,0.30405764]
[1749493230417,1.12270166,659.38,657.77,0.30405764]
[1749493230617,1.12270166,659.37,658.39,0.26414765]
[1749493230814,1.12270166,659.37,657.77,0.30405764]
[1749493230815,1.12270166,659.36,657.77,0.30405764]
[1749493231014,1.12270166,659.4,657.77,0.30405764]
[1749493231217,1.12270166,659.39,658.39,0.26414965]
[1749493231514,1.12270166,659.38,657.77,0.30405764]
[1749493231714,1.12270166,659.37,658.17,0.2641677]
[1749493232018,1.12270166,659.4,658.18,0.30386824]
[1749493232219,1.12270166,659.39,658.18,0.30386824]
[1749493232421,1.12270166,659.38,658.18,0.30386824]
[1749493232616,1.12270166,659.4,658.18,0.30386824]
[1749493233220,1.091,659.41,658.18,0.30386824]
[1749493233621,0.873,659.4,658.18,0.30386824]
[1749493234021,3.60426146,659.4,658.18,0.30386824]
[1749493234319,2.19776529,659.39,658.18,0.30386824]
[1749493235017,1.12270166,659.39,658.18,0.30386824]
[1749493235221,1.99570166,659.4,658.18,0.30386824]
[1749493235423,1.07322914,659.39,658.18,0.30386824]
[1749493235616,2.72932049,659.39,658.18,0.30386824]
[1749493235921,0.53339566,659.38,658.18,0.30386824]
[1749493236423,0.53331434,659.38,658.18,0.30386824]
[1749493236619,2.19586187,659.38,658.18,0.30386824]
[1749493236818,2.72647145,659.37,658.18,0.30386824]
[1749493237027,0.26413662,659.09,658.18,0.30386824]
[1749493246836,0.977,659.08,658.18,0.30386824]
[1749493249539,0.914,659.07,658.18,0.30386824]
[1749493258047,1.245,659.06,658.18,0.30386824]
[1749493266349,0.934,659.05,658.18,0.30386824]
[1749493268553,0.934,659.05,658.24,3.77510027]
[1749493268853,0.934,659.05,658.25,0.30383592]
[1749493269050,0.934,659.05,658.31,3.77510027]
[1749493270855,0.934,659.05,658.33,3.77510027]
[1749493273258,0.934,659.05,658.42,3.77510027]
[1749493277358,0.934,659.05,658.34,3.77510027]
[1749493281269,0.934,659.05,658.32,3.77510027]
[1749493282568,0.804,659.04,658.33,3.77510027]
[1749493282969,0.804,659.04,658.25,4.07893619]
[1749493285367,0.804,659.04,658.27,3.77510027]
[1749493285669,0.804,659.04,658.25,4.07893619]
[1749493287175,0.804,659.04,658.32,3.77510027]
[1749493287574,0.804,659.04,658.25,0.30383592]
[1749493291076,1.047,659.03,658.25,0.30383592]
[1749493293582,0.824,659.02,658.25,0.30383592]
[1749493295883,1.1,659.01,658.25,0.30383592]
[1749493305393,1.15,659.0,658.25,0.30383592]
[1749493314598,1.124,658.99,658.25,0.30383592]
[1749493316405,0.913,658.98,658.25,0.30383592]
[1749493320105,1.115,658.97,658.25,0.30383592]
[1749493323505,1.115,658.97,658.27,3.77510027]
[1749493323704,1.115,658.97,658.28,0.30382208]
[1749493331212,1.115,658.97,658.3,3.77510027]
[1749493331509,1.115,658.97,658.31,0.30380823]
[1749493332013,1.115,658.97,658.56,3.77510027]
[1749493333112,0.913,658.98,658.56,3.77510027]
[1749493333312,1.124,658.99,658.56,3.77510027]
[1749493333612,1.124,658.99,658.5,3.77510027]
[1749493334412,1.124,658.99,658.49,3.77510027]
[1749493336213,1.901,658.98,658.49,3.77510027]
[1749493338018,1.901,658.98,658.5,3.77510027]
[1749493338819,1.237,658.97,658.5,3.77510027]
[1749493341423,0.809,658.96,658.5,3.77510027]
[1749493343425,0.809,658.96,658.46,3.77510027]
[1749493345022,0.809,658.96,658.31,0.30380823]
[1749493351033,0.81,658.95,658.31,0.30380823]
[1749493352329,0.81,658.95,658.33,3.77510027]
[1749493352533,0.81,658.95,658.34,0.30379439]
[1749493353235,0.81,658.95,658.36,3.77510027]
[1749493354735,0.81,658.95,658.35,3.77510027]
[1749493355034,0.81,658.95,658.49,3.77510027]
[1749493355535,0.81,658.95,658.48,3.77510027]
[1749493356329,0.81,658.95,658.49,3.77510027]
[1749493357531,0.81,658.95,658.34,0.30379439]
[1749493358334,0.81,658.95,658.5,3.78844363]
[1749493359337,0.81,658.95,658.51,3.78844363]
[1749493360134,0.81,658.95,658.34,0.30379439]
[1749493361438,0.81,658.95,658.52,3.78844363]
[1749493361736,0.3342117,658.97,658.52,3.78844363]
[1749493361936,0.3342117,658.97,658.67,3.78844363]
[1749493362435,0.3342117,658.97,658.66,3.78844363]
[1749493362937,0.3342117,658.97,658.65,3.78844363]
[1749493363437,0.3342117,658.97,658.68,3.78844363]
[1749493363938,0.3342117,658.97,658.67,3.78844363]
[1749493364133,0.3342117,658.97,658.66,3.78844363]
[1749493364736,0.3342117,658.97,658.65,3.78844363]
[1749493365640,0.3342117,658.97,658.64,3.78844363]
[1749493366341,0.3342117,658.97,658.62,3.78844363]
[1749493367838,0.3342117,658.97,658.55,3.78844363]
[1749493370044,0.3342117,658.97,658.54,3.78844363]
[1749493371744,0.3342117,658.97,658.55,3.78844363]
[1749493372243,0.3342117,658.97,658.54,3.78844363]
[1749493373140,0.3342117,658.97,658.52,3.78844363]
[1749493373840,0.3342117,658.97,658.51,3.78844363]
[1749493376344,0.3342117,658.97,658.52,3.78844363]
[1749493377150,0.3342117,658.97,658.53,3.78844363]
[1749493377649,0.3342117,658.97,658.59,3.78844363]
[1749493378746,0.06396057,658.97,658.59,3.78844363]
[1749493379049,0.06396057,658.97,658.57,3.78844363]
[1749493379549,0.06396057,658.97,658.58,3.78844363]
[1749493379846,0.06396057,658.97,658.59,3.78844363]
[1749493380750,0.06396057,658.97,658.58,3.78844363]
[1749493381249,0.06396057,658.97,658.56,3.78844363]
[1749493381750,0.06396057,658.97,658.57,3.78844363]
[1749493382251,0.06396057,658.97,658.56,3.78844363]
[1749493382749,0.06396057,658.97,658.57,3.78844363]
[1749493385249,0.06396057,658.97,658.56,3.78844363]
[1749493385747,0.06396057,658.97,658.41,3.78844363]
[1749493385951,0.06396057,658.97,658.42,0.30375748]
[1749493387148,0.06396057,658.97,658.42,4.09220111]
[1749493388054,0.06396057,658.97,658.42,0.30375748]
[1749493389850,0.26408952,659.37,658.42,0.30375748]
[1749493390654,3.93290867,659.86,658.42,0.30375748]
[1749493390855,0.26396332,659.47,658.42,0.30375748]
[1749493391951,0.768,659.46,658.42,0.30375748]
[1749493393048,1.138,659.45,658.42,4.09220111]
[1749493393553,1.138,659.45,658.43,3.78844363]
[1749493393753,1.138,659.45,658.44,0.30374825]
[1749493394652,0.968,659.44,658.44,0.30374825]
[1749493395754,0.968,659.44,658.61,3.78844363]
[1749493398056,0.968,659.44,658.63,3.78844363]
[1749493398456,0.968,659.44,658.64,3.78844363]
[1749493401152,0.968,659.44,658.61,3.78844363]
[1749493401555,0.968,659.44,658.63,3.78844363]
[1749493402354,0.968,659.44,658.64,3.78844363]
[1749493403561,0.968,659.44,658.55,3.78844363]
[1749493403758,0.968,659.44,658.56,0.3036929]
[1749493404654,0.968,659.44,658.56,4.09213653]
[1749493406459,0.968,659.44,658.56,0.3036929]
[1749493406659,1.138,659.45,658.56,0.3036929]
[1749493408059,1.048,659.44,658.56,0.3036929]
[1749493409663,1.178,659.43,658.56,0.3036929]
[1749493420173,0.986,659.42,658.56,0.3036929]
[1749493422571,1.032,659.41,658.56,0.3036929]
[1749493425978,0.85,659.4,658.56,0.3036929]
[1749493426478,0.871,659.39,658.56,0.3036929]
[1749493435686,0.871,659.39,658.58,3.78844363]
[1749493437890,0.871,659.39,658.56,0.3036929]
[1749493438391,0.871,659.39,658.63,3.78844363]
[1749493438790,0.871,659.39,658.62,3.78844363]
[1749493439388,0.871,659.39,658.63,3.78844363]
[1749493440691,0.871,659.39,658.58,3.78844363]
[1749493441089,0.871,659.39,658.59,3.78844363]
[1749493444195,0.888,659.38,658.59,3.78844363]
[1749493444392,0.888,659.38,658.56,0.3036929]
[1749493451597,0.888,659.38,658.56,4.09213653]
[1749493451896,0.888,659.38,658.56,0.3036929]
[1749493453403,0.888,659.38,658.61,3.78844363]
[1749493453803,0.888,659.38,658.73,3.78844363]
[1749493455706,0.888,659.38,658.74,3.78844363]
[1749493456203,0.888,659.38,658.73,3.78844363]
[1749493457107,0.888,659.38,658.71,3.78844363]
[1749493458404,0.888,659.38,658.7,3.78844363]
[1749493458907,0.888,659.38,658.71,3.78844363]
[1749493459306,0.888,659.38,658.7,3.78844363]
[1749493459907,0.888,659.38,658.71,3.78844363]
[1749493461705,0.888,659.38,658.68,3.78844363]
[1749493462009,0.888,659.38,658.69,3.78844363]
[1749493463405,0.888,659.38,658.62,3.78844363]
[1749493463810,0.888,659.38,658.64,3.78844363]
[1749493464708,0.888,659.38,658.63,3.78844363]
[1749493466109,0.888,659.38,658.64,3.78844363]
[1749493467004,0.888,659.38,658.66,3.78844363]
[1749493467202,0.877,659.37,658.66,3.78844363]
[1749493468310,0.877,659.37,658.67,3.78844363]
[1749493469207,0.877,659.37,658.66,3.78844363]
[1749493470111,0.877,659.37,658.64,3.78844363]
[1749493471507,0.877,659.37,658.67,3.78844363]
[1749493471911,0.877,659.37,658.7,3.78844363]
[1749493473208,0.877,659.37,658.72,3.78844363]
[1749493476816,0.877,659.36,658.72,3.78844363]
[1749493478614,0.877,659.36,658.71,3.78844363]
[1749493479511,0.877,659.36,658.73,3.78844363]
[1749493479916,0.877,659.36,658.56,4.09213653]
[1749493480418,0.877,659.36,658.56,0.3036929]
[1749493482921,1.063,659.35,658.56,0.3036929]
[1749493489423,1.063,659.35,658.69,3.78844363]
[1749493489923,1.063,659.35,658.7,3.78844363]
[1749493490123,1.219,659.34,658.7,3.78844363]
[1749493490925,1.219,659.34,658.59,3.78844363]
[1749493491123,1.219,659.34,658.6,0.30367446]
[1749493491327,1.219,659.34,658.61,3.78844363]
[1749493491527,1.219,659.34,658.61,4.09211348]
[1749493491823,1.219,659.34,658.61,0.30366985]
[1749493497531,1.219,659.34,658.61,4.09211348]
[1749493499430,1.219,659.34,658.62,3.78844363]
[1749493499837,1.219,659.34,658.61,0.30366985]
[1749493501138,0.911,659.33,658.61,0.30366985]
[1749493502838,0.872,659.32,658.61,0.30366985]
[1749493512353,0.872,659.32,658.67,3.78844363]
[1749493513354,0.872,659.32,658.61,0.30366985]
[1749493520857,0.872,659.32,658.64,3.78844363]
[1749493521353,0.872,659.32,658.66,3.78844363]
[1749493521759,0.872,659.32,658.61,0.30366985]
[1749493523358,0.872,659.32,658.61,4.09211348]
[1749493524264,1.241,659.31,658.61,4.09211348]
[1749493524659,1.241,659.31,658.61,0.30366985]
[1749493525562,1.241,659.31,658.61,4.09211348]
[1749493525865,1.241,659.31,658.62,3.78844363]
[1749493529074,1.241,659.31,658.61,0.30366985]
[1749493534173,0.876,659.3,658.61,0.30366985]
[1749493541184,0.876,659.3,658.75,3.78844363]
[1749493542580,0.876,659.3,658.73,3.78844363]
[1749493542985,0.876,659.3,658.7,3.78844363]
[1749493543681,0.876,659.3,658.67,3.78844363]
[1749493544181,0.876,659.3,658.66,3.78844363]
[1749493545084,0.876,659.3,658.65,3.78844363]
[1749493545380,0.876,659.3,658.67,3.78844363]
[1749493546184,0.876,659.3,658.66,3.78844363]
[1749493546685,0.876,659.3,658.67,3.78844363]
[1749493548387,0.876,659.3,658.66,3.78844363]
[1749493549989,0.876,659.3,658.65,3.78844363]
[1749493550187,0.852,659.29,658.65,3.78844363]
[1749493550787,0.852,659.29,658.64,3.78844363]